[Event "44th Chess Olympiad Open 2022"]
[Site "Chennai"]
[Date "2022.08.02"]
[Round "5.54"]
[White "Leon Archibaldo, Orlando Andres"]
[Black "Gabriel, Davidson"]
[Result "1/2-1/2"]
[WhiteElo "2193"]
[BlackElo "1915"]
[Annotator "RC"]
[PlyCount "174"]
[EventDate "2022.??.??"]
[TimeControl "60"]

1. d4 {[%emt 0:00:11]} Nf6 {[%emt 0:00:13]} 2. Nc3 {[%emt 0:00:09]} c5 {
[%emt 0:05:20]} 3. d5 {[%emt 0:04:59]} d6 {[%emt 0:00:22]} 4. e4 {[%emt 0:00:
00]} e6 {[%emt 0:01:21]} 5. Bb5+ {[%emt 0:03:03]} Bd7 {[%emt 0:00:21]} 6. dxe6
{[%emt 0:00:30]} fxe6 {[%emt 0:00:17]} 7. e5 {[%emt 0:04:53]} dxe5 {[%emt 0:00:
00]} 8. Nf3 {[%emt 0:00:45]} a6 {[%emt 0:00:30]} 9. Bxd7+ {[%emt 0:01:21]}
Nbxd7 {[%emt 0:00:19]} 10. O-O {[%emt 0:03:02]} Qb6 {[%emt 0:13:13]} 11. Qe2 {
[%emt 0:13:42]} Bd6 {[%emt 0:03:55]} 12. Ng5 {[%emt 0:04:41]} Bc7 {[%emt 0:00:
00]} 13. Qc4 {[%emt 0:01:48]} Ke7 {[%emt 0:01:17]} 14. Be3 {[%emt 0:04:00]} h6
{[%emt 0:03:22]} 15. Nge4 {[%emt 0:01:21]} Qc6 {[%emt 0:05:12]} 16. Nxf6 {
[%emt 0:28:59]} gxf6 {[%emt 0:02:00]} 17. Qh4 {[%emt 0:00:29]} Rag8 {[%emt 0:
00:00]} 18. Ne4 {[%emt 0:01:21]} Rg6 {[%emt 0:06:51]} 19. f3 {[%emt 0:00:24]}
Kf7 {[%emt 0:01:15]} 20. Rad1 {[%emt 0:00:47]} f5 {[%emt 0:02:00]} 21. Ng5+ {
[%emt 0:11:03]} Kg7 {[%emt 0:05:01]} 22. Nh3 {[%emt 0:00:52]} Nf6 {[%emt 0:00:
00]} 23. c4 {[%emt 0:00:28]} Rd8 {[%emt 0:01:40]} 24. Rxd8 {[%emt 0:01:42]}
Bxd8 {[%emt 0:00:02]} 25. Qf2 {[%emt 0:00:12]} Be7 {[%emt 0:00:31]} 26. Bd2 {
[%emt 0:01:04]} Ng8 {[%emt 0:01:35]} 27. Bc3 {[%emt 0:00:37]} Bf6 {[%emt 0:00:
00]} 28. Qe3 {[%emt 0:01:09]} Qd6 {[%emt 0:01:38]} 29. Re1 {[%emt 0:00:19]} Ne7
{[%emt 0:00:38]} 30. Bxe5 {[%emt 0:00:17]} Bxe5 {[%emt 0:05:21]} 31. Qxe5+ {
[%emt 0:00:01]} Qxe5 {[%emt 0:00:15]} 32. Rxe5 {[%emt 0:00:07]} Kf6 {[%emt 0:
00:00]} 33. Re1 {[%emt 0:04:24]} e5 {[%emt 0:00:45]} 34. Rd1 {[%emt 0:00:00]}
Ke6 {[%emt 0:00:18]} 35. Nf2 {[%emt 0:00:55]} Rg8 {[%emt 0:00:43]} 36. Nd3 {
[%emt 0:00:33]} b6 {[%emt 0:00:22]} 37. Re1 {[%emt 0:00:03]} Nc6 {[%emt 0:00:
00]} 38. Nxe5 {[%emt 0:00:08]} Nxe5 {[%emt 0:01:56]} 39. f4 {[%emt 0:00:06]}
Rd8 {[%emt 0:00:20]} 40. Rxe5+ {[%emt 0:01:01]} Kf6 {[%emt 0:00:04]} 41. b3 {
[%emt 0:34:44]} Rd2 {[%emt 0:30:27]} 42. Re8 {[%emt 0:00:08]} b5 {[%emt 0:00:
00]} 43. Rc8 {[%emt 0:00:00]} bxc4 {[%emt 0:00:00]} 44. Rc6+ {[%emt 0:00:00]}
Kg7 {[%emt 0:00:00]} 45. Rxc5 {[%emt 0:00:00]} Rxa2 {[%emt 0:00:00]} 46. bxc4 {
[%emt 0:00:00]} Kf6 {[%emt 0:00:00]} 47. h3 {[%emt 0:00:00]} Rc2 {[%emt 0:00:
00]} 48. Kh2 {[%emt 0:00:00]} a5 {[%emt 0:00:00]} 49. Rxa5 {[%emt 0:00:00]}
Rxc4 {[%emt 0:00:00]} 50. Ra6+ {[%emt 0:00:00]} Kg7 {[%emt 0:00:00]} 51. Kg3 {
[%emt 0:00:00]} Rb4 {[%emt 0:00:00]} 52. Ra3 {[%emt 0:00:00]} Rc4 {[%emt 0:00:
00]} 53. Rf3 {[%emt 0:00:00]} Rc2 {[%emt 0:00:00]} 54. Rf2 {[%emt 0:00:00]} Rc4
{[%emt 0:00:00]} 55. Kh4 {[%emt 0:00:00]} Kg6 {[%emt 0:00:00]} 56. g3 {[%emt 0:
00:00]} Ra4 {[%emt 0:00:00]} 57. Rb2 {[%emt 0:00:00]} Ra6 {[%emt 0:00:00]} 58.
g4 {[%emt 0:00:00]} Rf6 {[%emt 0:00:00]} 59. Rb4 {[%emt 0:00:00]} Ra6 {[%emt 0:
00:00]} 60. Rb5 {[%emt 0:00:00]} fxg4 {[%emt 0:00:00]} 61. hxg4 {[%emt 0:00:00]
} Ra3 {[%emt 0:00:00]} 62. Rb6+ {[%emt 0:00:00]} Kg7 {[%emt 0:00:00]} 63. f5 {
[%emt 0:00:00]} Ra1 {[%emt 0:01:22]} 64. Rg6+ {[%emt 0:00:00]} Kh7 {[%emt 0:00:
00]} 65. Rb6 {[%emt 0:00:00]} Kg7 {[%emt 0:00:10]} 66. Rb7+ {[%emt 0:00:00]}
Kf6 {[%emt 0:00:32]} 67. Rb6+ {[%emt 0:01:29]} Kg7 {[%emt 0:00:16]} 68. Rb3 {
[%emt 0:00:22]} Rh1+ {[%emt 0:01:28]} 69. Kg3 {[%emt 0:00:21]} Ra1 {[%emt 0:00:
00]} 70. Rd3 {[%emt 0:00:28]} Rg1+ {[%emt 0:00:32]} 71. Kf4 {[%emt 0:00:10]}
Rf1+ {[%emt 0:00:23]} 72. Rf3 {[%emt 0:00:54]} Re1 {[%emt 0:00:18]} 73. Re3 {
[%emt 0:00:07]} Rf1+ {[%emt 0:02:01]} 74. Ke5 {[%emt 0:00:17]} Rg1 {[%emt 0:00:
00]} 75. Re4 {[%emt 0:00:09]} Kf7 {[%emt 0:00:59]} 76. Rb4 {[%emt 0:01:41]}
Re1+ {[%emt 0:00:11]} 77. Kf4 {[%emt 0:04:02]} Rf1+ {[%emt 0:00:26]} 78. Kg3 {
[%emt 0:00:22]} h5 {[%emt 0:02:24]} 79. Rb7+ {[%emt 0:01:28]} Kf6 {[%emt 0:00:
00]} 80. gxh5 {[%emt 0:02:45]} Kg5 {[%emt 0:01:26]} 81. h6 {[%emt 0:01:22]} Rh1
{[%emt 0:01:49]} 82. h7 {[%emt 0:03:46]} Kxf5 {[%emt 0:00:13]} 83. Ra7 {
[%emt 0:01:14]} Kg6 {[%emt 0:00:19]} 84. Kg4 {[%emt 0:00:02]} Rxh7 {[%emt 0:00:
00]} 85. Ra6+ {[%emt 0:00:20]} Kg7 {[%emt 0:00:05]} 86. Kg5 {[%emt 0:00:11]}
Rh1 {[%emt 0:00:20]} 87. Ra7+ {[%emt 0:00:08]} Kg8 {[%emt 0:00:08]} 1/2-1/2

[Event "44th Chess Olympiad Open 2022"]
[Site "Chennai"]
[Date "2022.08.02"]
[Round "5.54"]
[White "Guillaume, Jude Mirvens"]
[Black "Sanchez Alvarez, Roberto Carlos"]
[Result "0-1"]
[WhiteElo "2022"]
[BlackElo "2431"]
[Annotator "RC"]
[PlyCount "62"]
[EventDate "2022.??.??"]
[TimeControl "60"]

1. d4 {[%emt 0:00:06]} Nf6 {[%emt 0:00:10]} 2. Bf4 {[%emt 0:00:18]} g6 {
[%emt 0:00:22]} 3. e3 {[%emt 0:00:25]} Bg7 {[%emt 0:00:11]} 4. Bd3 {[%emt 0:00:
00]} d6 {[%emt 0:04:12]} 5. h3 {[%emt 0:01:23]} O-O {[%emt 0:03:33]} 6. Nf3 {
[%emt 0:00:33]} Nbd7 {[%emt 0:06:08]} 7. c3 {[%emt 0:04:33]} Qe8 {[%emt 0:00:
00]} 8. e4 {[%emt 0:04:51]} e5 {[%emt 0:00:52]} 9. dxe5 {[%emt 0:00:48]} dxe5 {
[%emt 0:08:14]} 10. Be3 {[%emt 0:00:18]} Qe7 {[%emt 0:06:07]} 11. Nbd2 {
[%emt 0:01:58]} Nc5 {[%emt 0:05:11]} 12. Bc2 {[%emt 0:00:44]} Rd8 {[%emt 0:00:
00]} 13. Qe2 {[%emt 0:00:26]} a5 {[%emt 0:02:10]} 14. Qb5 {[%emt 0:09:00]} Nfd7
{[%emt 0:02:50]} 15. b4 {[%emt 0:06:15]} axb4 {[%emt 0:02:40]} 16. cxb4 {
[%emt 0:00:49]} Ne6 {[%emt 0:06:50]} 17. O-O {[%emt 0:02:01]} c6 {[%emt 0:00:
00]} 18. Qc4 {[%emt 0:02:01]} Nd4 {[%emt 0:00:10]} 19. Nxd4 {[%emt 0:08:45]}
exd4 {[%emt 0:00:16]} 20. Bxd4 {[%emt 0:01:13]} Ne5 {[%emt 0:00:43]} 21. Bxe5 {
[%emt 0:08:44]} Bxe5 {[%emt 0:00:17]} 22. Nb3 {[%emt 0:13:14]} Be6 {[%emt 0:00:
00]} 23. Qc5 {[%emt 0:05:00]} Qxc5 {[%emt 0:00:11]} 24. Nxc5 {[%emt 0:01:43]}
Bxa1 {[%emt 0:00:46]} 25. Rxa1 {[%emt 0:00:02]} Rxa2 {[%emt 0:03:24]} 26. Rxa2
{[%emt 0:01:35]} Bxa2 {[%emt 0:00:03]} 27. Nxb7 {[%emt 0:00:46]} Rb8 {[%emt 0:
00:00]} 28. Nd6 {[%emt 0:03:35]} Rxb4 {[%emt 0:00:30]} 29. f3 {[%emt 0:03:36]}
c5 {[%emt 0:07:27]} 30. e5 {[%emt 0:06:28]} c4 {[%emt 0:01:53]} 31. Be4 {
[%emt 0:02:57]} c3 {[%emt 0:00:29]} 0-1

[Event "44th Chess Olympiad Open 2022"]
[Site "Chennai"]
[Date "2022.08.02"]
[Round "5.54"]
[White "Germinal, Kemly"]
[Black "Ramos Espinoza, Efren Andres"]
[Result "1/2-1/2"]
[WhiteElo "1997"]
[BlackElo "2158"]
[Annotator "NA RC"]
[PlyCount "149"]
[EventDate "2022.??.??"]
[TimeControl "60"]

1. e4 {[%emt 0:00:05]} c6 {[%emt 0:01:19]} 2. d4 {[%emt 0:00:55]} d5 {[%emt 0:
00:00]} 3. e5 {[%emt 0:00:15]} c5 {[%emt 0:00:06]} 4. c3 {[%emt 0:02:10]} Nc6 {
[%emt 0:00:28]} 5. Be3 {[%emt 0:05:51]} Qb6 {[%emt 0:06:19]} 6. Na3 {[%emt 0:
00:00]} cxd4 {[%emt 0:01:00]} 7. cxd4 {[%emt 0:01:36]} Bf5 {[%emt 0:03:43]} 8.
Bb5 {[%emt 0:10:41]} e6 {[%emt 0:00:46]} 9. Qa4 {[%emt 0:04:56]} Bxa3 {[%emt 0:
00:00]} 10. bxa3 {[%emt 0:00:14]} Nge7 {[%emt 0:00:16]} 11. Ne2 {[%emt 0:01:32]
} O-O {[%emt 0:00:18]} 12. O-O {[%emt 0:01:32]} a6 {[%emt 0:06:40]} 13. Bxc6 {
[%emt 0:00:07]} Nxc6 {[%emt 0:00:06]} 14. Rfc1 {[%emt 0:04:12]} Rac8 {[%emt 0:
00:00]} 15. Ng3 {[%emt 0:09:19]} Bg6 {[%emt 0:02:53]} 16. h4 {[%emt 0:00:55]}
h6 {[%emt 0:00:31]} 17. Nf1 {[%emt 0:03:51]} Na5 {[%emt 0:09:03]} 18. Qb4 {
[%emt 0:01:57]} Qb5 {[%emt 0:02:01]} 19. Rxc8 {[%emt 0:07:25]} Rxc8 {[%emt 0:
00:00]} 20. Rc1 {[%emt 0:01:00]} Rxc1 {[%emt 0:01:17]} 21. Bxc1 {[%emt 0:00:06]
} Qxb4 {[%emt 0:00:14]} 22. axb4 {[%emt 0:00:21]} Nc6 {[%emt 0:00:03]} 23. Bb2
{[%emt 0:02:51]} Nxb4 {[%emt 0:00:18]} 24. a3 {[%emt 0:00:30]} Nd3 {[%emt 0:00:
00]} 25. Bc3 {[%emt 0:02:00]} Nc1 {[%emt 0:05:56]} 26. Bb2 {[%emt 0:01:54]} Nb3
{[%emt 0:00:30]} 27. Bc3 {[%emt 0:02:42]} Bd3 {[%emt 0:00:31]} 28. Nd2 {
[%emt 0:00:43]} Nc1 {[%emt 0:00:46]} 29. Bb2 {[%emt 0:00:20]} Ne2+ {[%emt 0:00:
00]} 30. Kh2 {[%emt 0:00:40]} Bc2 {[%emt 0:01:55]} 31. g3 {[%emt 0:00:57]} a5 {
[%emt 0:11:59]} 32. Kg2 {[%emt 0:00:40]} f6 {[%emt 0:09:26]} 33. f4 {[%emt 0:
00:00]} fxe5 {[%emt 0:01:55]} 34. fxe5 {[%emt 0:00:14]} Kf7 {[%emt 0:02:17]}
35. Kf2 {[%emt 0:00:43]} Bd3 {[%emt 0:00:15]} 36. Nb3 {[%emt 0:00:15]} b6 {
[%emt 0:00:26]} 37. Nc1 {[%emt 0:00:14]} Nxc1 {[%emt 0:00:17]} 38. Bxc1 {
[%emt 0:00:05]} Ke7 {[%emt 0:02:22]} 39. Ke3 {[%emt 0:00:48]} Bc4 {[%emt 0:00:
00]} 40. Kd2 {[%emt 0:03:19]} Ke8 {[%emt 0:02:36]} 41. Ke3 {[%emt 0:30:44]} Bb3
{[%emt 0:30:28]} 42. Kd2 {[%emt 0:00:53]} Kd7 {[%emt 0:00:09]} 43. Kc3 {
[%emt 0:04:37]} Bd1 {[%emt 0:00:13]} 44. Kd2 {[%emt 0:01:11]} Ba4 {[%emt 0:00:
00]} 45. Kc3 {[%emt 0:00:33]} Kc6 {[%emt 0:00:24]} 46. g4 {[%emt 0:00:00]} Bd1
{[%emt 0:00:00]} 47. g5 {[%emt 0:00:00]} h5 {[%emt 0:00:00]} 48. g6 {[%emt 0:
00:00]} Bg4 {[%emt 0:00:00]} 49. Bh6 {[%emt 0:00:00]} Bf5 {[%emt 0:00:00]} 50.
Bxg7 {[%emt 0:00:00]} Bxg6 {[%emt 0:00:00]} 51. a4 {[%emt 0:00:00]} Kd7 {
[%emt 0:00:00]} 52. Bf6 {[%emt 0:00:00]} Be4 {[%emt 0:00:00]} 53. Kb3 {[%emt 0:
00:00]} Bd3 {[%emt 0:00:00]} 54. Bg5 {[%emt 0:00:00]} Bc4+ {[%emt 0:00:00]} 55.
Ka3 {[%emt 0:00:00]} Be2 {[%emt 0:00:00]} 56. Bf6 {[%emt 0:00:00]} Bd1 {
[%emt 0:00:00]} 57. Bg5 {[%emt 0:00:00]} Kc6 {[%emt 0:00:00]} 58. Be7 {[%emt 0:
00:00]} Be2 {[%emt 0:00:00]} 59. Bd8 {[%emt 0:00:00]} Bc4 {[%emt 0:00:00]} 60.
Bf6 {[%emt 0:00:00]} Kd7 {[%emt 0:00:00]} 61. Bg5 {[%emt 0:00:00]} Ke8 {
[%emt 0:00:00]} 62. Bf6 {[%emt 0:00:00]} b5 {[%emt 0:00:00]} 63. axb5 {[%emt 0:
00:00]} Bxb5 {[%emt 0:00:00]} 64. Bg5 {[%emt 0:00:00]} Kf7 {[%emt 0:00:00]} 65.
Bd8 {[%emt 0:00:00]} a4 {[%emt 0:00:00]} 66. Bb6 {[%emt 0:00:00]} Kg6 {[%emt 0:
00:00]} 67. Bc5 {[%emt 0:00:00]} Kf5 {[%emt 0:00:00]} 68. Bd6 {[%emt 0:00:00]}
Ke4 {[%emt 0:00:00]} 69. Bc5 {[%emt 0:00:00]} Kf3 {[%emt 0:00:00]} 70. Bd6 {
[%emt 0:00:00]} Kf4 {[%emt 0:00:00]} 71. Bc5 {[%emt 0:00:00]} Be8 {[%emt 0:00:
00]} 72. Bd6 {[%emt 0:00:00]} Ke4 {[%emt 0:00:00]} 73. Bc5 {[%emt 0:00:00]} Kf4
{[%emt 0:00:00]} 74. Bd6 {[%emt 0:00:00]} Ke4 {[%emt 0:00:00]} 75. Bc5 {
[%emt 0:00:11]} 1/2-1/2

[Event "44th Chess Olympiad Open 2022"]
[Site "Chennai"]
[Date "2022.08.02"]
[Round "5.55"]
[White "Abdulwahhab, Ahmed Abdulsattar A"]
[Black "Aziz, Husain"]
[Result "1/2-1/2"]
[WhiteElo "2251"]
[BlackElo "2380"]
[Annotator "RC"]
[PlyCount "61"]
[EventDate "2022.??.??"]
[TimeControl "60"]

1. e4 {[%emt 0:00:07]} e5 {[%emt 0:00:11]} 2. Nf3 {[%emt 0:00:20]} Nc6 {
[%emt 0:00:09]} 3. Bc4 {[%emt 0:00:39]} Nf6 {[%emt 0:00:22]} 4. d3 {[%emt 0:00:
00]} Be7 {[%emt 0:00:34]} 5. Nc3 {[%emt 0:02:01]} O-O {[%emt 0:01:53]} 6. a3 {
[%emt 0:01:08]} d6 {[%emt 0:00:26]} 7. h3 {[%emt 0:04:09]} Be6 {[%emt 0:07:00]}
8. O-O {[%emt 0:05:29]} Bxc4 {[%emt 0:01:16]} 9. dxc4 {[%emt 0:00:10]} Nd7 {
[%emt 0:08:12]} 10. Nd5 {[%emt 0:06:36]} Nc5 {[%emt 0:00:58]} 11. Re1 {[%emt 0:
00:00]} Qd7 {[%emt 0:02:56]} 12. b4 {[%emt 0:05:38]} Ne6 {[%emt 0:02:58]} 13.
Bb2 {[%emt 0:02:35]} f6 {[%emt 0:07:25]} 14. c5 {[%emt 0:01:34]} Rad8 {[%emt 0:
00:00]} 15. cxd6 {[%emt 0:01:43]} Bxd6 {[%emt 0:00:12]} 16. c4 {[%emt 0:02:42]}
b6 {[%emt 0:06:42]} 17. Qb3 {[%emt 0:02:19]} Ncd4 {[%emt 0:13:06]} 18. Bxd4 {
[%emt 0:16:17]} exd4 {[%emt 0:00:27]} 19. c5 {[%emt 0:02:01]} bxc5 {[%emt 0:00:
00]} 20. bxc5 {[%emt 0:02:20]} Bxc5 {[%emt 0:00:33]} 21. Nxc7 {[%emt 0:01:41]}
Qxc7 {[%emt 0:00:07]} 22. Qxe6+ {[%emt 0:00:09]} Qf7 {[%emt 0:03:02]} 23. Qf5 {
[%emt 0:01:19]} Bb6 {[%emt 0:02:46]} 24. a4 {[%emt 0:01:11]} d3 {[%emt 0:02:43]
} 25. Red1 {[%emt 0:01:37]} Rfe8 {[%emt 0:02:49]} 26. a5 {[%emt 0:08:22]} Bc7 {
[%emt 0:00:50]} 27. Qb5 {[%emt 0:01:40]} Qd7 {[%emt 0:13:12]} 28. Qc4+ {
[%emt 0:04:43]} Qf7 {[%emt 0:00:07]} 29. Qb5 {[%emt 0:00:53]} Qd7 {[%emt 0:00:
00]} 30. Qc4+ {[%emt 0:00:12]} Qf7 {[%emt 0:00:51]} 31. Qb5 {[%emt 0:00:08]}
1/2-1/2

[Event "44th Chess Olympiad Open 2022"]
[Site "Chennai"]
[Date "2022.08.02"]
[Round "5.55"]
[White "Ahmed, Ali Layth Ahmed"]
[Black "Yousuf M M Al Mutawa"]
[Result "1-0"]
[WhiteElo "2249"]
[BlackElo "2120"]
[Annotator "RC"]
[PlyCount "71"]
[EventDate "2022.??.??"]
[TimeControl "60"]

1. d4 {[%emt 0:00:06]} d5 {[%emt 0:00:09]} 2. Nf3 {[%emt 0:01:36]} Nf6 {
[%emt 0:00:19]} 3. c4 {[%emt 0:00:16]} e6 {[%emt 0:00:12]} 4. e3 {[%emt 0:00:
00]} Nbd7 {[%emt 0:00:46]} 5. b3 {[%emt 0:00:56]} c5 {[%emt 0:03:40]} 6. Bd3 {
[%emt 0:04:16]} b6 {[%emt 0:01:32]} 7. O-O {[%emt 0:00:34]} Bb7 {[%emt 0:00:16]
} 8. Bb2 {[%emt 0:09:20]} Bd6 {[%emt 0:04:08]} 9. cxd5 {[%emt 0:01:23]} Nxd5 {
[%emt 0:11:16]} 10. dxc5 {[%emt 0:04:56]} bxc5 {[%emt 0:08:11]} 11. e4 {
[%emt 0:14:07]} N5b6 {[%emt 0:10:20]} 12. Bxg7 {[%emt 0:04:31]} Rg8 {[%emt 0:
00:00]} 13. Bb2 {[%emt 0:00:56]} Qc7 {[%emt 0:05:37]} 14. Nc3 {[%emt 0:10:51]}
a6 {[%emt 0:00:16]} 15. Ne2 {[%emt 0:03:45]} h5 {[%emt 0:05:56]} 16. Ng3 {
[%emt 0:05:26]} h4 {[%emt 0:01:07]} 17. Nxh4 {[%emt 0:00:14]} Ne5 {[%emt 0:00:
00]} 18. Be2 {[%emt 0:04:12]} O-O-O {[%emt 0:01:07]} 19. Qc2 {[%emt 0:01:14]}
Kb8 {[%emt 0:02:55]} 20. Rac1 {[%emt 0:05:18]} Qe7 {[%emt 0:01:26]} 21. Bxe5 {
[%emt 0:03:30]} Bxe5 {[%emt 0:22:08]} 22. Qxc5 {[%emt 0:02:26]} Qxc5 {[%emt 0:
00:00]} 23. Rxc5 {[%emt 0:00:02]} Bxg3 {[%emt 0:00:19]} 24. hxg3 {[%emt 0:00:
00]} Rd2 {[%emt 0:01:13]} 25. Bh5 {[%emt 0:00:23]} Bxe4 {[%emt 0:01:44]} 26.
Bxf7 {[%emt 0:02:48]} Rf8 {[%emt 0:00:37]} 27. Bxe6 {[%emt 0:01:43]} Bd3 {
[%emt 0:00:04]} 28. Nf3 {[%emt 0:01:39]} Rxa2 {[%emt 0:00:12]} 29. Re1 {
[%emt 0:04:32]} Rb2 {[%emt 0:02:00]} 30. Rc3 {[%emt 0:00:40]} Bb5 {[%emt 0:00:
00]} 31. g4 {[%emt 0:01:47]} Be2 {[%emt 0:01:29]} 32. g5 {[%emt 0:00:00]} Nc8 {
[%emt 0:01:57]} 33. Bxc8 {[%emt 0:02:55]} Bxf3 {[%emt 0:01:13]} 34. gxf3 {
[%emt 0:00:22]} Rxc8 {[%emt 0:00:25]} 35. Rxc8+ {[%emt 0:00:13]} Kxc8 {[%emt 0:
00:00]} 36. g6 {[%emt 0:01:25]} 1-0

[Event "44th Chess Olympiad Open 2022"]
[Site "Chennai"]
[Date "2022.08.02"]
[Round "5.55"]
[White "Al-Sulaiti, Ghanem"]
[Black "Salih, Akar Ali Salih"]
[Result "0-1"]
[WhiteElo "2183"]
[BlackElo "2243"]
[Annotator "NA RC"]
[PlyCount "79"]
[EventDate "2022.??.??"]
[TimeControl "60"]

1. e4 {[%emt 0:00:09]} c5 {[%emt 0:00:31]} 2. Nf3 {[%emt 0:00:31]} d6 {[%emt 0:
00:00]} 3. Bb5+ {[%emt 0:01:16]} Nd7 {[%emt 0:00:18]} 4. c4 {[%emt 0:15:15]}
Ngf6 {[%emt 0:02:58]} 5. Nc3 {[%emt 0:00:13]} g6 {[%emt 0:02:02]} 6. d4 {
[%emt 0:29:21]} cxd4 {[%emt 0:01:29]} 7. Nxd4 {[%emt 0:00:11]} Bg7 {[%emt 0:00:
00]} 8. Be3 {[%emt 0:02:01]} a6 {[%emt 0:03:28]} 9. Bxd7+ {[%emt 0:02:03]} Bxd7
{[%emt 0:00:08]} 10. f3 {[%emt 0:01:37]} O-O {[%emt 0:01:07]} 11. Rc1 {[%emt 0:
00:00]} Rc8 {[%emt 0:04:31]} 12. Qe2 {[%emt 0:02:02]} Qa5 {[%emt 0:13:19]} 13.
O-O {[%emt 0:01:11]} e6 {[%emt 0:20:24]} 14. Rfd1 {[%emt 0:11:17]} Qb4 {
[%emt 0:14:56]} 15. b3 {[%emt 0:21:11]} e5 {[%emt 0:03:58]} 16. a3 {[%emt 0:00:
00]} Qa5 {[%emt 0:06:05]} 17. b4 {[%emt 0:03:14]} Qxa3 {[%emt 0:00:10]} 18. Nb1
{[%emt 0:02:18]} Qxb4 {[%emt 0:00:20]} 19. Nc2 {[%emt 0:00:12]} Qxc4 {[%emt 0:
00:00]} 20. Qf2 {[%emt 0:00:33]} Ba4 {[%emt 0:05:48]} 21. Nca3 {[%emt 0:00:45]}
Qb4 {[%emt 0:00:39]} 22. Bd2 {[%emt 0:00:20]} Qb2 {[%emt 0:01:11]} 23. Re1 {
[%emt 0:00:00]} d5 {[%emt 0:01:34]} 24. Qh4 {[%emt 0:01:10]} dxe4 {[%emt 0:00:
00]} 25. Bc3 {[%emt 0:00:08]} Qb6+ {[%emt 0:00:40]} 26. Kh1 {[%emt 0:00:00]}
exf3 {[%emt 0:00:24]} 27. Qxa4 {[%emt 0:00:09]} Qf2 {[%emt 0:01:37]} 28. Rg1 {
[%emt 0:00:18]} Nd5 {[%emt 0:03:43]} 29. Qe4 {[%emt 0:01:16]} Nf4 {[%emt 0:00:
00]} 30. gxf3 {[%emt 0:00:10]} f5 {[%emt 0:00:33]} 31. Qxb7 {[%emt 0:00:01]}
Rb8 {[%emt 0:01:47]} 32. Qc6 {[%emt 0:00:01]} Rfc8 {[%emt 0:02:54]} 33. Be1 {
[%emt 0:00:01]} Qe2 {[%emt 0:00:51]} 34. Qxc8+ {[%emt 0:00:12]} Rxc8 {[%emt 0:
00:00]} 35. Rxc8+ {[%emt 0:00:22]} Bf8 {[%emt 0:00:20]} 36. Nd2 {[%emt 0:03:06]
} Nd3 {[%emt 0:00:43]} 37. Bh4 {[%emt 0:00:48]} Qxd2 {[%emt 0:00:17]} 38. Rb1 {
[%emt 0:00:24]} Nf4 {[%emt 0:00:43]} 39. Rc2 {[%emt 0:00:35]} Qd3 {[%emt 0:00:
00]} 40. Bg5 {[%emt 0:00:00]} 0-1

[Event "44th Chess Olympiad Open 2022"]
[Site "Chennai"]
[Date "2022.08.02"]
[Round "5.55"]
[White "Erfan Mohamad Firdaus"]
[Black "Mohammed, Zozek Salah Mohamme"]
[Result "0-1"]
[WhiteElo "1294"]
[BlackElo "2232"]
[Annotator "NA RC"]
[PlyCount "68"]
[EventDate "2022.??.??"]
[TimeControl "60"]

1. e4 {[%emt 0:00:13]} e6 {[%emt 0:00:16]} 2. d4 {[%emt 0:00:15]} d5 {[%emt 0:
00:00]} 3. Nd2 {[%emt 0:00:11]} c5 {[%emt 0:00:16]} 4. exd5 {[%emt 0:00:36]}
Qxd5 {[%emt 0:01:18]} 5. Ngf3 {[%emt 0:01:01]} cxd4 {[%emt 0:01:02]} 6. Bc4 {
[%emt 0:00:48]} Qd6 {[%emt 0:00:31]} 7. O-O {[%emt 0:00:26]} Nf6 {[%emt 0:00:
00]} 8. Nb3 {[%emt 0:00:59]} Nc6 {[%emt 0:00:02]} 9. Nbxd4 {[%emt 0:00:33]}
Nxd4 {[%emt 0:00:35]} 10. Qxd4 {[%emt 0:00:14]} Qxd4 {[%emt 0:00:52]} 11. Nxd4
{[%emt 0:00:09]} Bd7 {[%emt 0:00:29]} 12. Bf4 {[%emt 0:01:58]} Rc8 {[%emt 0:00:
00]} 13. Bb3 {[%emt 0:08:41]} Bc5 {[%emt 0:00:59]} 14. Rad1 {[%emt 0:01:07]}
O-O {[%emt 0:01:05]} 15. Rfe1 {[%emt 0:00:59]} b5 {[%emt 0:06:20]} 16. Bg5 {
[%emt 0:07:20]} a5 {[%emt 0:05:04]} 17. a3 {[%emt 0:06:35]} a4 {[%emt 0:11:20]}
18. Ba2 {[%emt 0:00:34]} b4 {[%emt 0:02:22]} 19. axb4 {[%emt 0:03:13]} Bxb4 {
[%emt 0:00:41]} 20. c3 {[%emt 0:00:13]} Bc5 {[%emt 0:05:05]} 21. Nf3 {[%emt 0:
00:00]} Rfd8 {[%emt 0:09:34]} 22. Ne5 {[%emt 0:34:57]} Be8 {[%emt 0:01:58]} 23.
Be3 {[%emt 0:03:16]} Bxe3 {[%emt 0:04:52]} 24. fxe3 {[%emt 0:00:18]} Rb8 {
[%emt 0:01:39]} 25. Nc4 {[%emt 0:01:00]} Bc6 {[%emt 0:07:44]} 26. Na5 {[%emt 0:
00:00]} Be4 {[%emt 0:13:40]} 27. b4 {[%emt 0:04:43]} axb3 {[%emt 0:03:13]} 28.
Bxb3 {[%emt 0:00:36]} Rdc8 {[%emt 0:00:42]} 29. Rc1 {[%emt 0:01:22]} Rc5 {
[%emt 0:01:11]} 30. Ra1 {[%emt 0:02:56]} Rbb5 {[%emt 0:03:10]} 31. Red1 {
[%emt 0:01:28]} h5 {[%emt 0:00:15]} 32. Rd8+ {[%emt 0:01:42]} Kh7 {[%emt 0:00:
00]} 33. c4 {[%emt 0:00:36]} Rxa5 {[%emt 0:00:08]} 34. Rxa5 {[%emt 0:00:29]}
Rxa5 {[%emt 0:00:01]} 0-1